Cogmind - Beta 13 @@@ ROGUE MODE // 2024.04.05 @ 15:12:46 Player: Olafz Result: Destroyed by S-10 Pest with Light Assault Rifle Performance ------------- Evolutions (1) 500 Regions Visited (2) 400 Robots Destroyed (7) 35 Value Destroyed (139) 139 Prototype IDs (0) 0 Alien Tech Used (0) 0 Bonus (0) 0 TOTAL SCORE: 1074 Bonus ------- None Cogmind --------- Core Integrity 0/400 Matter 138/300 Energy 100/100 System Corruption 0% Temperature Cool (2) Movement Flying (40) Location -9/Materials Parts ------- > --- POWER (1) -------- (None) > --- PROPULSION (2) --- Flight Unit > --- UTILITY (4) ------ (None) > --- WEAPON (2) ------- Flail > --- INVENTORY (5) ---- Small Storage Unit Peak State ------------ > --- POWER ------------ Ion Engine > --- PROPULSION ------- Aluminum Leg Aluminum Leg > --- UTILITY ---------- Small Storage Unit Signal Interpreter > --- WEAPON ----------- Assault Rifle Light Assault Rifle > --- INVENTORY -------- Light Ion Engine [Rating: 7] Favorites ----------- Power Ion Engine Engine Ion Engine Propulsion Aluminum Leg Leg Aluminum Leg Flight Unit VTOL Module Utility Small Storage Unit Storage Small Storage Unit Processor Signal Interpreter Weapon Assault Rifle Ballistic Gun Assault Rifle Impact Weapon Flail Build | -11 -10 -9 ------- Run | Yrd Mat Mat Slots Evolved 2 | . . 2 Power . | . . . Propulsion . | . . . Utility 2 | . . 2 Weapon . | . . . Parts Attached 15 | 7 3 5 Power 3 | 2 . 1 Engine 3 | 2 . 1 Core . | . . . Reactor . | . . . Propulsion 7 | 2 2 3 Treads . | . . . Leg 5 | 2 2 1 Wheel . | . . . Hover . | . . . Flight 2 | . . 2 Utility 2 | 1 1 . Device . | . . . Storage 1 | 1 . . Processor 1 | . 1 . Hackware . | . . . Protection . | . . . Artifact . | . . . Weapon 3 | 2 . 1 Energy Gun . | . . . Energy Cannon . | . . . Ballistic Gun 2 | 2 . . Ballistic Cannon . | . . . Launcher . | . . . Special Weapon . | . . . Impact Weapon 1 | . . 1 Slashing Weapon . | . . . Piercing Weapon . | . . . Special Melee Weapon . | . . . Unidentified Prototypes . | . . . Parts Lost 9 | . 4 5 Power 2 | . 1 1 Propulsion 5 | . 2 3 Utility . | . . . Weapon 2 | . 1 1 Highest Loss Streak 8 | . 4 8 To Critical Strikes 1 | . . 1 Average Slot Usage (%) 61 | . 84 29 Engine 8 | . 12 3 Leg 17 | . 27 3 Flight 2 | . . 4 Storage 11 | . 14 7 Processor 4 | . 2 6 Ballistic Gun 15 | . 26 1 Impact Weapon 1 | . . 3 Naked Turns 3 | . . 3 Heaviest Build 13 | 13 13 10 Greatest Support 20 | 20 20 20 Greatest Overweight (x) 2 | . 1 2 Average Overweight (x) . | . . . Largest Inventory Capacity 8 | 8 8 8 Average Capacity 7 | 6 8 7 Most Carried 2 | 1 2 1 Average Carried . | . 1 . Final Capacity 8 | 8 8 5 Final Carried 2 | 1 2 1 Class Distribution -------------------- 100% | Mutant Dominant Class ---------------- Mutant | -10/Materials Mutant | -9/Materials Resources | -11 -10 -9 ----------- Run | Yrd Mat Mat Matter Collected 263 | 139 80 44 Remotely . | . . . Salvage Created 194 | . 150 44 Parts 18 | . 18 . Haulers Intercepted . | . . . Recyclers Shooed 1 | . 1 . Parts Field Recycled . | . . . Retrieved Matter . | . . . Parts Self-Destructed . | . . . Prevented . | . . . Kills | -11 -10 -9 ------- Run | Yrd Mat Mat Combat Hostiles Destroyed 5 | . 4 1 Guns 4 | . 4 . Classes Destroyed 5 | . 4 1 Worker 1 | . 1 . Builder 1 | . 1 . Swarmer 2 | . 2 . Grunt 2 | . 2 . Sentry 1 | . . 1 Best Kill Streak 3 | . 3 1 Combat Bots Only 2 | . 2 1 Max Kills in Single Turn 1 | . 1 1 Gunslinging . | . . . Exploded . | . . . Melee . | . . . Uniques/NPCs Destroyed . | . . . Combat | -11 -10 -9 -------- Run | Yrd Mat Mat Hostile Shots Fired 219 | . 106 113 Missed 85 | . 36 49 Damage Taken 1324 | . 713 611 Core 564 | . 164 400 Absorbed by Shields . | . . . Core Remaining (%) 67 | 100 34 . Volleys Fired 31 | . 28 3 Largest 2 | . 2 1 Hottest 40 | . 40 20 Shots Fired 58 | . 55 3 Gun 58 | . 55 3 Cannon . | . . . Launcher . | . . . Special . | . . . Kinetic 58 | . 55 3 Thermal . | . . . Explosive . | . . . Electromagnetic . | . . . Robot Hit Streak 2 | . 2 2 Robot Miss Streak 5 | . 5 1 Penetration Max . | . . . Secondary Targets 1 | . 1 . Max Gunslinging Chain 1 | . 1 . Shots Hit Robots 28 | . 21 7 Core Hits 12 | . 11 1 Critical Kills . | . . . Critical Parts Destroyed 2 | . 1 1 Critical Strikes 2 | . 1 1 Destroy 1 | . 1 . Smash 1 | . . 1 Melee Attacks 5 | . . 5 Impact 5 | . . 5 Slashing . | . . . Piercing . | . . . Sneak Attacks . | . . . Combat Hostiles . | . . . Follow-up Attacks . | . . . Damage Inflicted 439 | . 251 188 Guns 280 | . 251 29 Cannons . | . . . Explosions . | . . . Melee 159 | . . 159 Ramming . | . . . Kinetic 280 | . 251 29 Thermal . | . . . Explosive . | . . . Electromagnetic . | . . . Impact 159 | . . 159 Slashing . | . . . Piercing . | . . . Highest Corruption . | . . . Average Corruption . | . . . Corruption Purged . | . . . Corruption Blocked . | . . . Overload Shots . | . . . Overflow Damage 38 | . . 38 Projectiles . | . . . Explosions . | . . . Melee 38 | . . 38 Knockbacks . | . . . Impact . | . . . Kinetic . | . . . Secondary . | . . . Self-Inflicted Damage . | . . . Shots . | . . . Rammed . | . . . Targets Rammed . | . . . Kicked . | . . . Crushed . | . . . Highest Temperature 24 | . 24 . Average Temperature 9 | . 9 . Received Heat Transfer 318 | . 252 66 Siege Activations . | . . . Robots Corrupted . | . . . Combat Hostiles . | . . . Parts Fried . | . . . Impact Corruptions 2 | . . 2 Robots Melted . | . . . Combat Hostiles . | . . . Parts Melted . | . . . Heat Transferred . | . . . Parts Sabotaged . | . . . Parts Stolen . | . . . Parts Stripped . | . . . Power Chain Reactions . | . . . Alert | -11 -10 -9 ------- Run | Yrd Mat Mat Peak Influence 137 | . 125 137 Initial 37 | . . 37 Average 52 | . 64 53 Maximum Alert Level . | . . . Low Security (%) 100 | 100 100 100 Level 1 . | . . . Level 2 . | . . . Level 3 . | . . . Level 4 . | . . . Level 5 . | . . . High Security . | . . . Max Security . | . . . Squads Dispatched . | . . . Investigation . | . . . Extermination . | . . . Reinforcement . | . . . Assault . | . . . Garrison . | . . . Intercept . | . . . Searches Triggered . | . . . Construction Impeded . | . . . Haulers Reinforced . | . . . Active Scanning Responses . | . . . Cargo Convoy Interrupts . | . . . Stealth | -11 -10 -9 --------- Run | Yrd Mat Mat Distress Signals 1 | . 1 . Communications Jammed . | . . . Distress Signals . | . . . Times Spotted 29 | . 13 16 Peak Tracking Total 11 | . 7 11 Tactical Retreats 5 | . 2 3 Traps | -11 -10 -9 ------- Run | Yrd Mat Mat Traps Triggered 2 | . . 2 Indirectly . | . . . Trap Hack Attempts . | . . . Triggered . | . . . Disarmed . | . . . Reprogrammed . | . . . Reused . | . . . Traps Extracted . | . . . Installed . | . . . Triggered . | . . . Machines | -11 -10 -9 ---------- Run | Yrd Mat Mat Machines Disabled . | . . . Max in Single Turn . | . . . Machines Repaired . | . . . Machines Dismantled . | . . . Machines Sabotaged . | . . . Overloaded Fab Kills . | . . . Hacking | -11 -10 -9 --------- Run | Yrd Mat Mat Machines Accessed . | . . . Terminals . | . . . Fabricators . | . . . Repair Stations . | . . . Recycling Units . | . . . Scanalyzers . | . . . Garrison Access . | . . . Total Hacks . | . . . Successful . | . . . Failed . | . . . Catastrophic . | . . . Database Lockouts . | . . . Manual . | . . . Terminals . | . . . Fabricators . | . . . Repair Stations . | . . . Recycling Units . | . . . Scanalyzers . | . . . Garrison Access . | . . . Terminal Hacks . | . . . Fabricator Hacks . | . . . Repair Station Hacks . | . . . Recycling Unit Hacks . | . . . Scanalyzer . | . . . Garrison Access Hacks . | . . . Unauthorized Hacks . | . . . Terminals . | . . . Fabricators . | . . . Repair Stations . | . . . Recycling Units . | . . . Scanalyzers . | . . . Garrison Access . | . . . Data Cores Recovered . | . . . Used . | . . . Hacking Detections . | . . . Full Trace Events . | . . . Feedback Events . | . . . Feedback Blocked . | . . . Robot Schematics Acquired . | . . . Robots Built . | . . . Authchips . | . . . Time . | . . . Total Robot Build Rating . | . . . Part Schematics Acquired . | . . . Parts Built . | . . . Authchips . | . . . Time . | . . . Total Part Build Rating . | . . . Parts Repaired . | . . . Time . | . . . Parts Recycled . | . . . Recycled Matter . | . . . Retrieved Matter . | . . . Retrieved Components . | . . . Parts Scanalyzed . | . . . Part Schematics Acquired . | . . . Parts Damaged . | . . . Bothacking | -11 -10 -9 ------------ Run | Yrd Mat Mat Used RIF Installer . | . . . Robots Hacked . | . . . Non-combat . | . . . Combat . | . . . Robot Hacks Applied . | . . . Relay Couplers Released . | . . . Fabnet Peak Effective % . | . . . Robots Rewired . | . . . Allies Hacked . | . . . Hacks Repelled . | . . . Allies | -11 -10 -9 -------- Run | Yrd Mat Mat Total Allies . | . . . Largest Group . | . . . Highest-Rated Group . | . . . Highest-Rated Ally . | . . . Total Orders . | . . . Ally Attacks . | . . . Total Damage . | . . . Kills . | . . . Allies Corrupted . | . . . Allies Melted . | . . . Intel | -11 -10 -9 ------- Run | Yrd Mat Mat Robot Analysis Total . | . . . Derelict Logs Recovered . | . . . Drone Launches . | . . . Drone Recoveries . | . . . Exploration | -11 -10 -9 ------------- Run | Yrd Mat Mat Turns Passed 480 | 60 243 177 Spaces Moved 393 | 43 134 216 Core 79 | 2 . 77 Treads . | . . . Legs 205 | 41 134 30 Wheels . | . . . Hover . | . . . Flight 109 | . . 109 Fastest Speed 34 | 50 120 34 Average Speed 92 | 116 120 70 Slowest Speed 190 | 120 190 150 Overloaded Moves . | . . . Propulsion Burnouts . | . . . Robots Hopped . | . . . Cave-ins Triggered . | . . . Exploration Rate (%) 16 | 3 27 20 Regions Visited 2 Branch Regions . Pre-discovered Areas . | . . . Known Exits Taken 1 | . 1 . Unknown Exits Taken 1 | 1 . . Scrap Searched . | . . . Spaces Dug . | . . . Terrain Destroyed . | . . . Melee . | . . . Projectile . | . . . AOE . | . . . Terrain Rammed . | . . . Walls Destroyed . | . . . Machines Disabled . | . . . Actions | -11 -10 -9 --------- Run | Yrd Mat Mat Total 443 | 49 164 230 Wait . | . . . Move 391 | 42 133 216 Hop . | . . . Pick Up . | . . . Fast Attach 11 | 6 2 3 Attach 2 | . . 2 Detach 1 | . . 1 Swap 2 | 1 1 . Drop . | . . . Fire 31 | . 28 3 Melee 5 | . . 5 Ram . | . . . Kick . | . . . Crush . | . . . Escape Stasis . | . . . Rewire . | . . . Trap . | . . . Miscellaneous . | . . . Route ------- -11/Scrapyard -10/Materials -9/Materials History --------- Turn | Location | Event 28 | -11/Scrapyard | Discovered new exit (range 14) 61 | -11/Scrapyard | Entered Materials 211 | -10/Materials | Discovered new exit (range 4) 293 | -10/Materials | Core integrity fell below 50% 303 | -10/Materials | Identified exit to Materials 304 | -10/Materials | Entered another Materials area 304 | -9/Materials | Evolved 2 slots: Utility x2 326 | -9/Materials | Build established: Mutant 388 | -9/Materials | Lost 8 parts (2p4n2w) 426 | -9/Materials | Core integrity fell below 50% 474 | -9/Materials | Core integrity fell below 20% 481 | -9/Materials | Destroyed by S-10 Pest with Light Assault Rifle Last Messages --------------- 00415_ Signal Interpreter severed. 00416_ Triggered Blade Trap. 00416_ Massive razor-sharp blades shoot up from within the floor. 00421_ U-05 Engineer lays Concrete. 00427_ Acquired VTOL Module. 00439_ Acquired Flail. 00445_ Acquired Flight Unit. 00467_ VTOL Module destroyed. 00476_ Y-45 Defender suffers critical hit (Smash). 00476_ Destroyed Heat Sink. 00476_ Y-45 Defender system corrupted by crushing effect. 00479_ Destroyed Imp. Ion Engine. 00479_ Y-45 Defender system corrupted by crushing effect. 00480_ Y-45 Defender system terminally corrupted. 00481_ Acquired 44 matter. Map ----- +----------------------------------------------------+ | ???????????????????+ ??????????????? | | ???????????????????# ??????????????? | | ???????????????????# ??????????????? | | ???????????????????# #??????????????? | | ???????????????????# #??????????????? | | ???????????????????# #??????????????? | | ??????????########## #??????????????? | | ??????????# # #??????????????? | | ??????????# # #??????????????? | | ??????????# [! # #??????????????? | | ??????????# [! # #??????????????? | | ??????????# + #??????????????? | | ????####### """ # #??????????????? | | ????# + """ ! ### #??????????????? | | ????# ## """ #?# ####???????????? | | ????# ## #?# #???????????? | | ????# ###########?# #???????????? | | ????# #?????# ### #???????????? | | ????# #?????# #???????????? | | ????# #?????# ######/####????????? | | ????# #??????# #???# #????????? | | ????# #???#### ##### #????????? | | ????# #???# / #????????? | | ????# #???# ##### #????????? | | ????# ##### #???# #????????? | | ????# s @ #???# #????????? | | ????# ##+########+############????????? | | ????# # ?????# #????????????? | | ????# #""" ???# """ #????????????? | | ????# #""" #??# """ #????????????? | | ????# #""" #??# """ "" #????????????? | | ????# # #??# """#????????????? | | ????# # #??# """ S"#????????????? | | ????# ########??# """ """#????????????? | | ????# #?????????# """ """#????????????? | | ????# #?????????# #????????????? | | ????# ###############+####????????????? | | ????# #?????????????? | | ????########## #### #?????????????? | | ?????????#####/##?# #?????????????? | | ?????????# #?# #?????????????? | | ?????????# #?# #?????????????? | | ?????????# """ #?## ##?????????????? | | ########## """ #??# #########??????? | | # # """ #??# # ???????? | | # # #??# # """ ""???????? | | # #+#+####### # """ """??????? | | # # # """ S"#?????? | | # """ + + #?????? | | ? """"" # # #?????? | +----------------------------------------------------+ Best States ------------- Heat Dissipation 28 Energy Generation 10 Energy Capacity 250 Matter Stores 169 Matter Capacity 300 Sight Range 16 Terrain Scan Density 10 Evasion (%) 63 Item Schematics ----------------- None Robot Schematics ------------------ None Fabricated ------------ Nothing Alien Tech Used ----------------- None Achievements -------------- None Challenges ------------ None Game ------ Seed EnhancedWaveNeutralizer Manual? 0 Play Time 00:08:38 Cumulative 20.6 hours Start 2024.04.05 @ 15:06:53 End 2024.04.05 @ 15:12:46 Sessions 1 Manual Loads 0 Difficulty Rogue Special Mode None Game No. 56 Rogue 54 Adventurer 2 Explorer 0 Win Type - Total 0 Types 0/0/0/0/0/0/0/0/0 Lore% 18 Gallery% 23 Achievement% 21 Wizard Run 0 Options --------- Layout 1 ASCII 0 Keyboard 1 Movement Arrows Keybinds 0 Fullscreen 2 Font 24/Smallcaps Map View 50x35 Zoom Use 0% Tactical HUD 1 Map Filters NONE Filters NONE Steam 1 RUN: fd07b47e-4858-4b17-bccc-92b13dc8a329